[Event "12th National Amateur Chess-ch 2025"]
[Site "Bihar"]
[Date "2025.03.27"]
[Round "5.1"]
[White "Ayaan Garg"]
[Black "Vidit Sethi"]
[Result "1/2-1/2"]
[Annotator "TA"]
[ECO "D52"]
[WhiteElo "1983"]
[BlackElo "1832"]
[PlyCount "61"]
[EventDate "2025.03.25"]
[EventCountry "IND"]
[SourceTitle "playchess.com"]
[Source "ChessBase"]
[SourceQuality "1"]
[TimeControl "5400+30"]

{[%evp 21,61,40,40,46,57,54,58,52,100,64,61,66,65,60,68,68,73,66,77,48,56,12,54,10,60,31,58,19,43,36,52,25,37,-47,12,-31,0,-49,-6,-60,-42,-64]} 1. d4 {[%emt 0:01:02]} d5 {[%emt 0:00:05]} 2. c4 {[%emt 0:00:05]} c6 {[%emt 0:00:03]} 3. Nf3 {[%emt 0:00:03]} Nf6 {[%emt 0:00:05]} 4. Nc3 {[%emt 0:00:06]} e6 {[%emt 0:00:09]} 5. Bg5 {[%emt 0:00:03]} Nbd7 {[%emt 0:00:08]} 6. e3 {[%emt 0:00:04]} Qa5 {[%emt 0:00:08]} 7. Nd2 {[%emt 0:00:08]} Bb4 {[%emt 0:01:22]} 8. Qc2 {[%emt 0:00:08]} dxc4 {[%emt 0:00:16]} 9. Bxf6 {[%emt 0:00:06]} Nxf6 {[%emt 0:00:23]} 10. Nxc4 {[%emt 0:00:05]} Qc7 {[%emt 0:00:27]} 11. Bd3 {[%emt 0:00:40]} O-O {[%emt 0:00:56]} 12. O-O {[%emt 0:00:39][%cal Bh1f1,Bf1f3,Bf3g3][%mdl 32] D52: Queen's Gambit Declined: Cambridge Springs Variation.} Bd6 {[%emt 0:10:33]} 13. f4 $146 {[%emt 0:03:36]} (13. Nxd6 Qxd6 14. f4 h6 15. Ne4 Nxe4 16. Bxe4 Bd7 17. Rfd1 Rac8 18. Qc5 Qb8 19. Rac1 b6 {1-0 Wu,D (1630)-Kow,W (1397) Penang op 10th 2018 (3)}) 13... h6 {[%emt 0:00:38]} 14. Rac1 {[%emt 0:01:30] White is slightly better.} a6 {[%emt 0:04:35]} (14... Bd7 $14) 15. Ne4 {[%emt 0:05:14] White is much more active. The black rooks are passive.} Nxe4 {[%emt 0:06:10]} 16. Bxe4 {[%emt 0:00:05]} Bd7 {[%emt 0:03:09]} 17. Rf3 {[%emt 0:06:28]} f5 {[%emt 0:01:39]} 18. Bd3 {[%emt 0:00:11]} Rab8 {[%emt 0:06:53]} 19. Qb3 {[%emt 0:09:02]} b6 {[%emt 0:02:23]} 20. Rg3 {[%emt 0:04:10]} Rf7 {[%emt 0:01:32]} 21. Qc3 {[%emt 0:04:34]} a5 {[%emt 0:05:59]} 22. b3 {[%emt 0:02:46]} Bb4 {[%emt 0:00:52]} (22... Rc8 $11) 23. Qb2 {[%emt 0:00:32]} Bd6 {[%emt 0:00:30]} 24. Qd2 {[%emt 0:05:19]} Kh8 {[%emt 0:00:44]} 25. Be2 {[%emt 0:01:41]} Re7 {[%emt 0:04:08]} 26. Qc2 {[%emt 0:01:12]} Rc8 {[%emt 0:00:44]} 27. Kh1 {[%emt 0:01:27]} (27. Rg6 $14) 27... Be8 {[%emt 0:00:46]} (27... c5 $15 28. Ne5 Bxe5 29. fxe5 Bc6) 28. Bd3 {[%emt 0:05:08]} Bd7 {[%emt 0:02:01]} 29. a3 {[%emt 0:07:17]} (29. Be2 $11) 29... c5 $15 {[%emt 0:03:52]} 30. Ne5 {[%emt 0:15:27]} (30. Rg6 $11) 30... Be8 {[%emt 0:01:36] Strongly threatening ...cxd4.} 31. Nc4 {[%emt 0:01:03] Weighted Error Value: White=0.29 (precise) /Black=0.17 (very precise)   Mistake:       	White=3     	Black=3      Inaccurate:     	White=8     	Black=2      OK:         	White=3     	Black=4      Best:        	---       	Black=2} 1/2-1/2

[Event "12th National Amateur Chess-ch 2025"]
[Site "Bihar"]
[Date "2025.03.27"]
[Round "5.2"]
[White "Arhan Jain"]
[Black "Utkrisht Tuli"]
[Result "1/2-1/2"]
[Annotator "TA"]
[ECO "E06"]
[WhiteElo "1914"]
[BlackElo "2020"]
[PlyCount "79"]
[EventDate "2025.03.25"]
[EventCountry "IND"]
[SourceTitle "playchess.com"]
[Source "ChessBase"]
[SourceQuality "1"]
[TimeControl "5400+30"]

{[%evp 17,79,2,10,-25,15,-6,39,1,0,25,44,41,54,43,56,51,51,49,22,40,23,10,10,10,8,5,1,1,20,18,20,16,22,19,47,35,47,31,35,34,52,41,53,53,53,20,48,42,41,0,50,54,57,31,82,64,66,65,81,65,75,59,59,0]} 1. d4 {[%emt 0:00:12]} d5 {[%emt 0:00:53]} 2. c4 {[%emt 0:00:07]} e6 {[%emt 0:00:04]} 3. Nf3 {[%emt 0:00:07]} Nf6 {[%emt 0:00:06]} 4. g3 {[%emt 0:00:02]} Bb4+ {[%emt 0:00:04]} 5. Bd2 {[%emt 0:00:03]} Be7 {[%emt 0:00:05]} 6. Bg2 {[%emt 0:00:04]} O-O {[%emt 0:00:06]} 7. O-O {[%emt 0:00:07]} c6 {[%emt 0:00:08]} 8. Qc2 {[%emt 0:00:22]} b6 {[%emt 0:00:12]} 9. Bf4 {[%emt 0:00:12]} Bb7 {[%emt 0:01:00]} 10. Rd1 {[%emt 0:02:20] E06: Closed Catalan: Early deviations.} h6 {[%emt 0:00:16]} 11. Ne5 $146 {[%emt 0:02:16]} ({Predecessor:} 11. Nc3 Nbd7 12. Ne5 Nh5 13. Be3 Nhf6 14. Bf4 Nh5 15. Be3 Bd6 16. Bf3 Nhf6 17. Bf4 Qb8 18. Nxd7 Nxd7 19. Bxd6 Qxd6 {0-1 Ghosh,D (2556)-Lenic,L (2662) PRO League Stage rapid 2018 (4)}) 11... Nfd7 {[%emt 0:00:16]} 12. e4 {[%emt 0:03:20]} Nxe5 {[%emt 0:00:08]} 13. Bxe5 {[%emt 0:01:06]} Nd7 {[%emt 0:00:30]} 14. exd5 {[%emt 0:01:35]} cxd5 {[%emt 0:02:55]} 15. cxd5 {[%emt 0:00:56]} exd5 {[%emt 0:06:50]} 16. Nc3 {[%emt 0:02:46]} Nf6 {[%emt 0:01:06]} 17. Qb3 {[%emt 0:02:58]} Rc8 {[%emt 0:02:51]} 18. Rac1 {[%emt 0:04:15]} Qd7 {[%emt 0:03:42]} 19. Bxf6 {[%emt 0:04:56]} (19. Re1 {feels hotter.} Rfe8 20. h4 Ne4 21. Nxe4 dxe4 22. Rxc8 Rxc8 23. Bxe4 Bxe4 24. Rxe4 Qf5 25. Rf4) 19... Bxf6 {[%emt 0:00:55]} 20. Nxd5 {[%emt 0:00:21]} (20. Bxd5 Rxc3 21. bxc3 Bxd5 $19 (21... Qxd5 $2 22. Qxd5 Bxd5 23. c4 $19)) 20... Bxd5 {[%emt 0:00:38]} 21. Qxd5 {[%emt 0:00:17]} Rxc1 {[%emt 0:10:24]} 22. Rxc1 {[%emt 0:00:16][%cal Bd1c1,Bc1c7,Bc7a7][%mdl 32]} Qxd5 {[%emt 0:00:22]} 23. Bxd5 {[%emt 0:00:04]} Bxd4 $11 {[%emt 0:00:14][%mdl 4096] Endgame KRB-KRB} 24. Rc7 {[%emt 0:00:17]} Bxb2 {[%emt 0:00:07]} 25. Rxa7 {[%emt 0:00:05]} g6 {[%emt 0:00:13]} 26. Kg2 {[%emt 0:00:23]} Bd4 {[%emt 0:00:28]} 27. Rb7 {[%emt 0:00:31]} Kg7 {[%emt 0:00:29]} 28. h4 {[%emt 0:01:06]} h5 {[%emt 0:00:07]} 29. Bb3 {[%emt 0:00:24]} Kf6 {[%emt 0:01:53]} 30. Rd7 {[%emt 0:00:39]} Bc5 {[%emt 0:00:20]} 31. Kf3 {[%emt 0:00:30]} Be7 {[%emt 0:01:15]} 32. Rb7 {[%emt 0:00:08]} Bc5 {[%emt 0:00:07]} 33. Kg2 {[%emt 0:00:23]} Kg7 {[%emt 0:00:18]} (33... Bd4 $1 $11) 34. f3 $14 {[%emt 0:03:26][%cal Bf2f3,Bf3g4,Bg4g5][%mdl 32]} Kf6 {[%emt 0:00:59]} 35. g4 {[%emt 0:00:38]} hxg4 {[%emt 0:02:05]} (35... g5 $14) 36. fxg4 $16 {[%emt 0:00:04]} Bd4 {[%emt 0:00:26]} 37. Kf3 {[%emt 0:00:43]} Bc5 {[%emt 0:01:01]} 38. g5+ {[%emt 0:00:35]} Kg7 {[%emt 0:00:21]} 39. Rd7 {[%emt 0:00:30] White is more active.} Bg1 {[%emt 0:01:31]} 40. Ke4 {[%emt 0:01:53] Weighted Error Value: White=0.10 (very precise) /Black=0.13 (very precise)   Mistake:       	White=1     	Black=2      Inaccurate:     	White=4     	Black=4      OK:         	White=11    	Black=7      Best:        	---       	Black=2} (40. Kg3 $14) 1/2-1/2

[Event "12th National Amateur Chess-ch 2025"]
[Site "Bihar"]
[Date "2025.03.27"]
[Round "5.3"]
[White "Anadkat Kartavya"]
[Black "Pratiyush Kumar"]
[Result "1-0"]
[Annotator "TA"]
[ECO "B33"]
[WhiteElo "2175"]
[BlackElo "1817"]
[PlyCount "81"]
[EventDate "2025.03.25"]
[EventCountry "IND"]
[SourceTitle "playchess.com"]
[Source "ChessBase"]
[SourceQuality "1"]
[TimeControl "5400+30"]

{[%evp 28,81,76,79,115,118,137,62,67,77,77,77,80,73,82,77,110,100,116,112,100,105,143,141,115,93,112,95,147,126,532,529,478,110,116,112,116,116,124,110,166,181,185,189,194,191,177,120,238,238,266,247,1031,961,29997,29998]} 1. e4 {[%emt 0:01:40]} c5 {[%emt 0:00:49]} 2. Nf3 {[%emt 0:00:08]} Nc6 {[%emt 0:00:07]} 3. d4 {[%emt 0:00:18]} cxd4 {[%emt 0:00:13]} 4. Nxd4 {[%emt 0:00:03]} Nf6 {[%emt 0:00:07]} 5. Nc3 {[%emt 0:00:13]} e5 {[%emt 0:00:29]} 6. Ndb5 {[%emt 0:00:16]} d6 {[%emt 0:00:17]} 7. Bg5 {[%emt 0:00:12]} a6 {[%emt 0:00:23]} 8. Na3 {[%emt 0:00:05]} b5 {[%emt 0:00:08]} 9. Bxf6 {[%emt 0:00:10]} gxf6 {[%emt 0:00:08]} 10. Nd5 {[%emt 0:00:03]} Bg7 {[%emt 0:00:18]} 11. Bd3 {[%emt 0:02:40]} Ne7 {[%emt 0:00:27]} 12. Nxe7 {[%emt 0:00:26]} Qxe7 {[%emt 0:00:17]} 13. O-O {[%emt 0:00:55]} O-O {[%emt 0:00:13]} 14. c4 {[%emt 0:00:05]} f5 {[%emt 0:04:08]} 15. Qh5 {[%emt 0:00:22]} (15. exf5 e4 16. f6 Bxf6 $11 (16... Qxf6 17. Bxe4 Rb8 18. cxb5 $14)) (15. cxb5 d5 $11) 15... f4 {[%emt 0:32:09] B33: Sicilian: Pelikan and Sveshnikov Variations.} 16. cxb5 {[%emt 0:01:20][%csl Oa6,Od6,Oh7] Black has weak pawns} Kh8 {[%emt 0:05:05][%cal Of7f5]} 17. Nc4 {[%emt 0:18:19]} (17. Rfd1 $16) 17... axb5 $14 {[%emt 0:02:57] White is slightly better.} 18. Nb6 {[%emt 0:00:08][%csl LRa8,LRb5]} Rb8 {[%emt 0:01:13]} 19. Nxc8 $146 {[%emt 0:04:39]} (19. Nd5 Qd8 20. Rfc1 Rb7 21. Rc6 Be6 22. Rac1 Rg8 23. Qe2 Qg5 24. f3 Bf8 25. Kh1 {½-½ Dekic,J (2265)-Nikcevic,N (2270) YUG-ch sf Kladovo 1989}) 19... Rfxc8 {[%emt 0:03:26] Black is weak on the light squares} 20. Rfc1 {[%emt 0:00:51]} Qd7 {[%emt 0:15:51]} 21. g3 {[%emt 0:02:31]} fxg3 {[%emt 0:04:17]} 22. hxg3 {[%emt 0:00:26]} Kg8 {[%emt 0:01:20]} 23. Rc2 {[%emt 0:09:03] White is more active.} Rxc2 {[%emt 0:05:40]} 24. Bxc2 {[%emt 0:00:47][%cal Bd3c2,Bc2b3,Bb3f7][%mdl 32]} Qe6 {[%emt 0:03:44]} 25. Bb3 {[%emt 0:02:07]} Qg6 {[%emt 0:00:37]} 26. Qf3 {[%emt 0:02:40]} (26. Qxg6 {simplifies} hxg6 27. Rc1 Rb7 28. Rc6) 26... Bf6 {[%emt 0:04:32]} 27. Kg2 {[%emt 0:04:42]} Bd8 {[%emt 0:01:06]} (27... Kg7 $142 28. Rh1 b4) 28. Rh1 $16 {[%emt 0:00:07]} Kg7 {[%emt 0:02:23][%mdl 8192] [#] Inhibits Rh6.} (28... Bf6 $16 29. Bd5 Kg7) 29. Bxf7 $1 $18 {[%emt 0:05:11][%mdl 512]} Qf6 {[%emt 0:01:10]} 30. Qxf6+ {[%emt 0:00:24]} (30. Qg4+ $18 {is the precise move to win.} Qg5 (30... Kxf7 $2 {too greedy.} 31. Rxh7+ Kf8 32. Qh5 $18) 31. Qe6) 30... Bxf6 {[%emt 0:00:14][%mdl 4096] Endgame KRB-KRB. White is a pawn up.} 31. Be6 {[%emt 0:00:02]} Bg5 {[%emt 0:01:56]} 32. Rd1 {[%emt 0:00:17]} Rb6 {[%emt 0:00:45]} 33. Bd5 {[%emt 0:03:43]} Kf6 {[%emt 0:00:59]} (33... Ra6 $16 34. Kf3 h5) 34. Rd3 {[%emt 0:00:37]} Kg7 {[%emt 0:02:47]} 35. Rc3 {[%emt 0:00:10]} h6 {[%emt 0:01:18]} 36. Rc7+ {[%emt 0:00:12]} Kg6 {[%emt 0:00:35]} 37. Kf3 {[%emt 0:02:42]} (37. Bf7+ $18 Kf6 38. Bb3) 37... b4 {[%emt 0:01:33] [#]} (37... h5 $16 38. Rc8 b4 39. Rg8+ Kf6) 38. Bf7+ $1 {[%emt 0:02:02]} Kf6 {[%emt 0:00:37]} 39. Kg4 {[%emt 0:00:03] And now f4 would win.} Bc1 {[%emt 0:01:31]} (39... Bd2 40. Ra7 Rb8) 40. Bd5 {[%emt 0:00:44] White threatens Kh5 and mate.} Bxb2 {[%emt 0:01:38]} 41. Kh5 {[%emt 0:00:01] Weighted Error Value: White=0.25 (precise) /Black=0.90  Loses game:     	---       	Black=1      Missed win:     	White=1     	---        Mistake:       	White=2     	Black=4      Inaccurate:     	---       	Black=3      OK:         	White=11    	Black=8      Best:        	White=1     	Black=1      Strong:       	White=1     	---        Brilliant:      	White=1     	---} 1-0

[Event "12th National Amateur Chess-ch 2025"]
[Site "Bihar"]
[Date "2025.03.27"]
[Round "5.4"]
[White "Amartya Saumitra Gupta"]
[Black "Sham R"]
[Result "0-1"]
[Annotator "TA"]
[ECO "C55"]
[WhiteElo "1884"]
[BlackElo "2128"]
[PlyCount "78"]
[EventDate "2025.03.25"]
[EventCountry "IND"]
[SourceTitle "playchess.com"]
[Source "ChessBase"]
[SourceQuality "1"]
[TimeControl "5400+30"]

{[%evp 13,78,39,33,33,43,35,40,24,27,21,25,29,43,7,4,-14,8,16,26,0,30,21,16,16,52,52,56,0,2,-35,-37,-166,-78,-72,-58,-95,-100,-223,-206,-429,-430,-416,-435,-406,-266,-329,-329,-327,-322,-347,-308,-301,-300,-365,-323,-336,-277,-377,-380,-360,-356,-438,-447,-554,-547,-835,-831]} 1. e4 {[%emt 0:01:16]} e5 {[%emt 0:00:02]} 2. Nf3 {[%emt 0:00:08]} Nc6 {[%emt 0:00:01]} 3. Bc4 {[%emt 0:00:10]} Nf6 {[%emt 0:00:03]} 4. d3 {[%emt 0:00:09]} Be7 {[%emt 0:00:01]} 5. O-O {[%emt 0:00:11]} O-O {[%emt 0:00:02]} 6. Re1 {[%emt 0:00:06]} d6 {[%emt 0:00:03]} 7. a4 {[%emt 0:00:08]} Na5 {[%emt 0:00:03]} 8. Ba2 {[%emt 0:00:08] C55: Two Knights: 4 d3, 4 d4 exd4 5 e5 and Max Lange Attack.} c5 {[%emt 0:00:01]} 9. c3 {[%emt 0:00:32]} Nc6 {[%emt 0:00:07]} 10. Nbd2 {[%emt 0:00:07] White is slightly better.} h6 {[%emt 0:00:11]} 11. h3 {[%emt 0:00:05]} Re8 {[%emt 0:00:04]} 12. Nf1 {[%emt 0:00:56]} Bf8 {[%emt 0:00:02]} 13. N3h2 {[%emt 0:06:36]} d5 $146 {[%emt 0:01:34]} (13... Be6 14. f4 Bxa2 15. Rxa2 d5 16. fxe5 Nxe5 17. d4 cxd4 18. cxd4 Nc6 19. e5 Ne4 {0-1 Reefat,B (2473)-Ganguly,S (2583) United Insurance 8th 2005 (6)}) 14. Qf3 {[%emt 0:00:17]} (14. exd5 Nxd5 15. Qf3 Be6 16. Ng4) 14... dxe4 {[%emt 0:11:23]} 15. dxe4 {[%emt 0:00:09]} Be6 {[%emt 0:00:15]} 16. Ng3 {[%emt 0:00:27]} g6 {[%emt 0:09:06]} 17. Ng4 {[%emt 0:06:51]} Nxg4 {[%emt 0:07:58]} 18. hxg4 {[%emt 0:01:00]} Qc8 {[%emt 0:18:40]} 19. Bxe6 {[%emt 0:00:29]} Qxe6 {[%emt 0:00:03]} 20. Be3 {[%emt 0:02:35]} (20. Nf1 $14) 20... Rad8 $11 {[%emt 0:05:34]} 21. Ne2 {[%emt 0:03:01]} Qb3 {[%emt 0:11:57][%cal Od8d7]} (21... Na5 {is more complex.} 22. Ng3 Kg7 23. Rad1 Nc4) 22. g3 {[%emt 0:05:04]} (22. Qh3 $15) 22... Rd7 {[%emt 0:02:13]} (22... Qxb2 23. Reb1 Qc2 24. Rxb7 $17) (22... Na5 $19 {has better winning chances.} 23. c4 Nxc4 (23... Qxc4 24. Nc3 $17)) 23. Kg2 $17 {[%emt 0:01:40]} Re6 {[%emt 0:07:16][%cal Ob7b6] Black is more active.} 24. Rh1 {[%emt 0:07:59] [#] Black continues to play with concentration.} g5 $1 {[%emt 0:00:26][%cal Of8e7]} 25. Rh5 {[%emt 0:09:03]} (25. c4 $17 {was called for.}) 25... Bg7 {[%emt 0:00:57]} 26. Bxg5 $2 {[%emt 0:08:11]} (26. Rhh1) 26... hxg5 {[%emt 0:01:06]} 27. Rxg5 {[%emt 0:00:05]} Ne7 {[%emt 0:02:57]} (27... Qxb2 28. Rh1 $19) 28. Rh1 {[%emt 0:00:35][%cal Oh1h8]} Qc4 {[%emt 0:07:26][%cal Oe6b6] and ...Rb6! should not be overlooked} (28... Qxa4 29. Ng1 $19) 29. Nc1 {[%emt 0:01:50]} Ng6 {[%emt 0:01:13]} (29... Qxa4 30. Nd3 b6 31. b4 cxb4 32. Rh8+ Kxh8 33. Qxf7 $17) 30. b3 {[%emt 0:01:33]} Qa6 {[%emt 0:00:04]} 31. Qe3 {[%emt 0:00:21]} Qd6 {[%emt 0:00:29]} 32. Rgh5 {[%emt 0:01:18]} b6 {[%emt 0:00:30]} 33. Qf3 {[%emt 0:01:10]} Rf6 {[%emt 0:01:42]} 34. Rf5 {[%emt 0:00:08]} Ne7 {[%emt 0:01:40]} 35. g5 {[%emt 0:00:23]} Rg6 {[%emt 0:00:13]} (35... Rxf5 $2 36. exf5 f6 37. gxf6 Qxf6 (37... Bxf6 $2 38. Rh5 $19) 38. g4 $19) 36. Rxf7 {[%emt 0:03:19]} Rxg5 {[%emt 0:00:40]} ({Much less strong is} 36... Qe6 37. Rf5 $19) 37. Rh5 {[%emt 0:03:17]} Qg6 {[%emt 0:00:24][%csl LRf7,LRh5] Black is clearly winning.} 38. Rxg5 {[%emt 0:00:34]} Qxg5 {[%emt 0:00:02]} ({Weaker is} 38... Qxf7 39. Qe2 $17) 39. Ne2 {[%emt 0:02:02] [#]} Ng6 $1 {[%emt 0:00:43] Weighted Error Value: White=0.60/Black=0.19 (very precise)   Mistake:       	White=4     	Black=1      Inaccurate:     	White=6     	Black=3      OK:         	White=6     	Black=13     Best:        	White=1     	Black=2      Strong:       	---       	Black=1} 0-1

[Event "12th National Amateur Chess-ch 2025"]
[Site "Bihar"]
[Date "2025.03.27"]
[Round "5.5"]
[White "Gurung Rohit"]
[Black "Ayushman Mohanty"]
[Result "1-0"]
[Annotator "TA"]
[ECO "C47"]
[WhiteElo "1902"]
[BlackElo "1827"]
[PlyCount "129"]
[EventDate "2025.03.25"]
[EventCountry "IND"]
[SourceTitle "playchess.com"]
[Source "ChessBase"]
[SourceQuality "1"]
[TimeControl "5400+30"]

{[%evp 22,128,-6,-9,0,0,4,-6,15,-32,-9,-57,-14,0,-11,-29,-2,-12,0,0,0,0,65,47,133,147,124,152,1654,405,939,-55,202,162,190,193,468,466,517,516,1197,743,1196,1177,2459,2331,29966,1071,1010,1070,954,988,981,981,937,908,2264,2055,6275,6200,5904,5710,5339,8353,5077,1194,29977,29977,29971,29970,29984,29985,29985,29986,29986,29986,29986,29984,29986,29987,29987,29988,29988,29989,29990,29991,29993,29992,29992,29990,29993,29994,29994,29994,29994,29995,29995,29996,29996,29997,29997,29997,29997,29997,29998,29998,29998,29999,29999]} 1. e4 {[%emt 0:01:02]} e5 {[%emt 0:00:25]} 2. Nf3 {[%emt 0:00:08]} Nc6 {[%emt 0:00:06]} 3. Nc3 {[%emt 0:00:04]} Nf6 {[%emt 0:00:03]} 4. d4 {[%emt 0:00:06]} exd4 {[%emt 0:00:04]} 5. Nxd4 {[%emt 0:00:06]} Bb4 {[%emt 0:00:04]} 6. Nxc6 {[%emt 0:00:10]} bxc6 {[%emt 0:00:04]} 7. Bd3 {[%emt 0:00:06]} d5 {[%emt 0:00:03]} 8. exd5 {[%emt 0:00:04]} cxd5 {[%emt 0:00:03]} 9. O-O {[%emt 0:00:08]} O-O {[%emt 0:00:04]} 10. Bg5 {[%emt 0:00:03]} c6 {[%emt 0:00:03]} 11. Na4 {[%emt 0:00:17]} Bd6 {[%emt 0:00:43]} 12. c4 {[%emt 0:00:44]} Bg4 {[%emt 0:01:04] C47: Scotch Four Knights and Four Knights with 4 g3.} 13. Qc2 {[%emt 0:13:55][%cal Od3h7] A sharp opening} h6 {[%emt 0:08:45]} 14. Bh4 {[%emt 0:01:14][%cal Od3h7]} Rb8 $146 {[%emt 0:03:57] The position is equal.} (14... Be6 15. Kh1 Rb8 16. a3 a5 17. Rad1 Re8 18. Rfe1 g5 19. Bg3 Kg7 20. cxd5 cxd5 {½-½ Paehtz,E (2438)-Zhao,X (2467) WchT (Women) 1st 2007 (9)}) 15. Rab1 {[%emt 0:05:35]} (15. Bh7+ $11 {is more appropriate.} Kh8 16. Bd3) 15... Re8 $15 {[%emt 0:10:47]} 16. c5 {[%emt 0:04:36]} (16. b3 $11) 16... Be7 {[%emt 0:06:39]} 17. Bg3 {[%emt 0:02:26]} Ra8 {[%emt 0:05:47]} 18. b4 {[%emt 0:03:19]} Nh5 {[%emt 0:09:03]} 19. b5 {[%emt 0:02:22]} Nxg3 {[%emt 0:00:18]} 20. hxg3 {[%emt 0:01:18]} Bd7 {[%emt 0:02:47]} 21. b6 {[%emt 0:02:16]} axb6 {[%emt 0:00:28]} (21... Be6 $11) 22. cxb6 $14 {[%emt 0:02:07][%csl Ob6] White has a strong passed pawn. White plays on the queen side and is better} Bd6 {[%emt 0:03:16] [#]} (22... c5 $14 23. Nxc5 Rc8) 23. Nc5 $1 $16 {[%emt 0:02:06]} Bxc5 {[%emt 0:05:02]} 24. Qxc5 {[%emt 0:02:02]} Ra7 {[%emt 0:00:06]} (24... Qe7 $16 25. Qxe7 Rxe7) 25. a3 (25. bxa7 $142 {White wants to mate with Rfe1.} Qc7 26. Rfe1) 25... Rxa3 {[%emt 0:00:31]} (25... Ra8 $142 26. b7 Rb8) 26. Rfe1 $2 {[%emt 0:07:11]} (26. Qxa3 $18 Qb8 27. Rfe1) 26... Ra8 $2 {[%emt 0:05:33][%mdl 8192]} (26... Rxd3 27. Rxe8+ Qxe8 28. b7 $18) (26... Rxe1+ $1 $15 {keeps the upper hand.} 27. Rxe1 Rxd3) 27. Rxe8+ $18 {[%emt 0:04:48]} Bxe8 {[%emt 0:05:12] [#]} 28. Re1 $1 {[%emt 0:02:37]} f6 $2 {[%emt 0:09:24]} (28... Qc8 {was necessary.} 29. Qe7 Bd7) 29. Re7 {[%emt 0:13:37]} Rb8 {[%emt 0:04:12]} 30. Rc7 {[%emt 0:00:53]} Ra8 {[%emt 0:01:42]} (30... Bd7 $142 31. Qd6 Bg4 32. Qxd8+ (32. Rxc6 Qxd6 33. Rxd6 Kf7 $11) (32. Qxc6 Kh8 $18) 32... Rxd8) 31. Kh2 {[%emt 0:01:46] Bf5 is the strong threat.} Rb8 {[%emt 0:01:48]} 32. Bf5 {[%emt 0:02:25]} Bf7 {[%emt 0:04:25] Repels Be6} 33. Qxc6 {[%emt 0:01:06]} d4 {[%emt 0:05:37]} 34. Rc8 {[%emt 0:00:47]} (34. b7 $142 Bd5 35. Be6+ (35. Qb6 Bxb7 36. Qe6+ Kh8 $18) 35... Bxe6 36. Qxe6+ Kh7 37. Rc8 d3 38. Rxd8 Rxd8 39. Qc8 Rxc8 40. bxc8=Q) 34... Rxc8 {[%emt 0:00:11]} 35. Qxc8 {[%emt 0:00:05]} Qxc8 {[%emt 0:00:06]} 36. Bxc8 {[%emt 0:00:07][%mdl 4096] Endgame KB-KB} Bd5 {[%emt 0:00:24] [#]} 37. Be6+ $1 {[%emt 0:01:15][%mdl 512]} Bxe6 {[%emt 0:00:06] KB-KP} 38. b7 {[%emt 0:00:03]} Bf5 {[%emt 0:00:53]} 39. b8=Q+ {[%emt 0:00:10]} ({Not} 39. b8=B Kf7 $15) 39... Kh7 {[%emt 0:00:04]} 40. Qf4 {[%emt 0:00:06]} Bg6 {[%emt 0:00:04]} 41. Qxd4 {[%emt 0:00:03]} Bf7 {[%emt 0:00:05]} 42. g4 {[%emt 0:00:13]} Kg8 {[%emt 0:00:06]} 43. f4 {[%emt 0:00:07]} Be8 {[%emt 0:00:06]} 44. Qd8 {[%emt 0:00:23] White mates.} Kf7 {[%emt 0:00:06]} 45. f5 {[%emt 0:00:19]} Ba4 {[%emt 0:00:44]} 46. Qd5+ {[%emt 0:00:12]} Kf8 {[%emt 0:00:14]} 47. Qc5+ {[%emt 0:00:27]} Ke8 {[%emt 0:00:09]} 48. Qe3+ {[%emt 0:01:10]} Kd8 {[%emt 0:00:18]} 49. Qe6 {[%emt 0:00:19]} Be8 {[%emt 0:00:13]} 50. Qd6+ {[%emt 0:00:13]} Kc8 {[%emt 0:00:06]} 51. Qf8 {[%emt 0:00:03]} Kd8 {[%emt 0:00:05]} 52. Qxg7 {[%emt 0:00:04]} Bd7 {[%emt 0:00:02]} 53. Qxf6+ {[%emt 0:00:10]} Ke8 {[%emt 0:00:04]} 54. Qxh6 {[%emt 0:00:05]} Ke7 {[%emt 0:00:05]} 55. Qg7+ {[%emt 0:00:15]} Kd8 {[%emt 0:00:08]} 56. f6 {[%emt 0:00:02]} Be8 {[%emt 0:00:12]} 57. Qe7+ {[%emt 0:00:05]} Kc8 {[%emt 0:00:02]} 58. Qxe8+ {[%emt 0:00:08]} Kc7 {[%emt 0:00:04]} 59. f7 {[%emt 0:00:07]} Kd6 {[%emt 0:00:03]} 60. f8=Q+ {[%emt 0:00:12]} Kd5 {[%emt 0:00:04]} 61. Qff7+ {[%emt 0:00:11]} Kd4 {[%emt 0:00:04]} 62. Qfd7+ {[%emt 0:00:09]} Kc5 {[%emt 0:00:06]} 63. Qec8+ {[%emt 0:00:02]} Kb4 {[%emt 0:00:03]} 64. Qdb7+ {[%emt 0:00:04]} Ka5 {[%emt 0:00:02]} 65. Qca8# {[%emt 0:00:04] Weighted Error Value: White=0.63/Black=1.63  Loses game:     	---       	Black=2      Mistake:       	White=3     	Black=5      Inaccurate:     	White=1     	Black=3      OK:         	White=8     	Black=5      Best:        	---       	Black=1      Strong:       	White=1     	---} 1-0